Cogmind - Beta 13 @@@ ROGUE MODE // 2024.05.22 @ 04:50:22 Player: A Moose Result: Destroyed by D-53 Grenadier with Mini Grenade Launcher Performance ------------- Evolutions (0) 0 Regions Visited (2) 400 Robots Destroyed (12) 60 Value Destroyed (294) 294 Prototype IDs (3) 60 Alien Tech Used (0) 0 Bonus (0) 0 TOTAL SCORE: 814 Bonus ------- None Cogmind --------- Core Integrity 0/250 Matter 296/300 Energy 99/100 System Corruption 1% Temperature Hot (232) Movement Core (400) Ox7 Location -10/Mines Parts ------- > --- POWER (1) -------- (None) > --- PROPULSION (2) --- (None) > --- UTILITY (2) ------ Large Storage Unit Targeting Computer > --- WEAPON (2) ------- High-powered Shotgun > --- INVENTORY (15) --- Ion Engine Light Treads Compact Wheel Compact Wheel Heat Sink Improved Heat Sink Large Storage Unit Signal Interpreter Targeting Computer Particle Charger ECM Suite Hardened Medium Armor Plating Autogun Autogun Autogun Peak State ------------ > --- POWER ------------ Ion Engine > --- PROPULSION ------- Light Treads Light Treads > --- UTILITY ---------- Large Storage Unit Targeting Computer > --- WEAPON ----------- Field Laser High-powered Shotgun > --- INVENTORY -------- Ion Engine Light Ion Engine Light Treads Compact Wheel Compact Wheel Heat Sink Improved Heat Sink Large Storage Unit Signal Interpreter Targeting Computer ECM Suite Hardened Medium Armor Plating Autogun Autogun Autogun [Rating: 13] Favorites ----------- Power Light Ion Engine Engine Light Ion Engine Propulsion Light Treads Treads Light Treads Wheel Compact Wheel Utility Propulsion Shielding Storage Large Storage Unit Processor Targeting Computer Protection Propulsion Shielding Weapon Medium Laser Energy Gun Medium Laser Ballistic Gun Autogun Build | -11 -10 -10 ------- Run | Yrd Mat Min Slots Evolved . | . . . Power . | . . . Propulsion . | . . . Utility . | . . . Weapon . | . . . Parts Attached 17 | 7 6 4 Power 2 | 1 . 1 Engine 2 | 1 . 1 Core . | . . . Reactor . | . . . Propulsion 5 | 2 3 . Treads 3 | . 3 . Leg . | . . . Wheel 2 | 2 . . Hover . | . . . Flight . | . . . Utility 4 | 1 2 1 Device . | . . . Storage 2 | 1 1 . Processor 1 | . . 1 Hackware . | . . . Protection 1 | . 1 . Artifact . | . . . Weapon 6 | 3 1 2 Energy Gun 2 | 1 . 1 Energy Cannon . | . . . Ballistic Gun 4 | 2 1 1 Ballistic Cannon . | . . . Launcher . | . . . Special Weapon . | . . . Impact Weapon . | . . . Slashing Weapon . | . . . Piercing Weapon . | . . . Special Melee Weapon . | . . . Unidentified Prototypes . | . . . Parts Lost 5 | . . 5 Power 1 | . . 1 Propulsion 2 | . . 2 Utility 1 | . . 1 Weapon 1 | . . 1 Highest Loss Streak 4 | . . 4 To Critical Strikes . | . . . Average Slot Usage (%) 99 | . 100 97 Engine 13 | . 14 13 Treads 27 | . 28 26 Storage 14 | . 14 14 Processor 3 | . . 11 Protection 10 | . 14 2 Energy Gun 13 | . 14 13 Ballistic Gun 14 | . 14 14 Naked Turns . | . . . Heaviest Build 31 | 12 29 31 Greatest Support 40 | 32 40 40 Greatest Overweight (x) 1 | . . 1 Average Overweight (x) . | . . . Largest Inventory Capacity 15 | 8 15 15 Average Capacity 12 | 6 11 15 Most Carried 15 | 4 15 15 Average Carried 10 | 2 9 14 Final Capacity 15 | 8 15 15 Final Carried 15 | 4 15 15 Class Distribution -------------------- 100% | Mutant Dominant Class ---------------- Mutant | -10/Materials Mutant | -10/Mines Resources | -11 -10 -10 ----------- Run | Yrd Mat Min Matter Collected 510 | 268 160 82 Remotely . | . . . Salvage Created 425 | . 292 133 Parts 21 | . 17 4 Haulers Intercepted 1 | . 1 . Recyclers Shooed 1 | . . 1 Parts Field Recycled . | . . . Retrieved Matter . | . . . Parts Self-Destructed . | . . . Prevented . | . . . Kills | -11 -10 -10 ------- Run | Yrd Mat Min Combat Hostiles Destroyed 12 | . 7 5 Guns 11 | . 6 5 Classes Destroyed 5 | . 4 1 Hauler 1 | . 1 . Watcher 2 | . 2 . Swarmer 3 | . 3 . Grunt 6 | . 4 2 Assembled 3 | . . 3 Best Kill Streak 3 | . 3 3 Combat Bots Only 3 | . 3 3 Max Kills in Single Turn 2 | . 1 2 Gunslinging 1 | . . 1 Exploded . | . . . Melee . | . . . Uniques/NPCs Destroyed . | . . . Combat | -11 -10 -10 -------- Run | Yrd Mat Min Hostile Shots Fired 69 | . 42 27 Missed 12 | . 11 1 Damage Taken 1039 | . 365 674 Core 264 | . 93 171 Absorbed by Shields . | . . . Redirected to Shielding 54 | . 49 5 Core Remaining (%) 100 | 100 . . Volleys Fired 48 | . 34 14 Largest 2 | . 2 2 Hottest 88 | . 73 88 Shots Fired 96 | . 68 28 Gun 96 | . 68 28 Cannon . | . . . Launcher . | . . . Special . | . . . Kinetic 48 | . 34 14 Thermal 48 | . 34 14 Explosive . | . . . Electromagnetic . | . . . Robot Hit Streak 13 | . 8 13 Robot Miss Streak 6 | . 3 6 Penetration Max . | . . . Secondary Targets 3 | . 1 2 Max Gunslinging Chain 1 | . 1 1 Shots Hit Robots 57 | . 39 18 Core Hits 27 | . 15 12 Critical Kills . | . . . Critical Parts Destroyed . | . . . Critical Strikes 2 | . 2 . Burn 2 | . 2 . Melee Attacks . | . . . Impact . | . . . Slashing . | . . . Piercing . | . . . Sneak Attacks . | . . . Combat Hostiles . | . . . Follow-up Attacks . | . . . Damage Inflicted 865 | . 507 358 Guns 865 | . 507 358 Cannons . | . . . Explosions . | . . . Melee . | . . . Ramming . | . . . Kinetic 445 | . 233 212 Thermal 420 | . 274 146 Explosive . | . . . Electromagnetic . | . . . Impact . | . . . Slashing . | . . . Piercing . | . . . Highest Corruption 1 | . 1 1 Average Corruption 1 | . 1 1 Corruption Purged . | . . . Corruption Blocked . | . . . Effects 1 | . . 1 Misfires 1 | . . 1 Overload Shots . | . . . Overflow Damage . | . . . Projectiles . | . . . Explosions . | . . . Melee . | . . . Knockbacks . | . . . Impact . | . . . Kinetic . | . . . Secondary . | . . . Self-Inflicted Damage . | . . . Shots . | . . . Rammed . | . . . Targets Rammed . | . . . Kicked . | . . . Crushed . | . . . Highest Temperature 281 | . 180 281 Average Temperature 81 | . 68 113 Received Heat Transfer 299 | . 174 125 Siege Activations . | . . . Robots Corrupted . | . . . Combat Hostiles . | . . . Parts Fried . | . . . Impact Corruptions . | . . . Robots Melted 1 | . 1 . Combat Hostiles 1 | . 1 . Parts Melted 2 | . 2 . Heat Transferred 1332 | . 962 370 Parts Sabotaged . | . . . Parts Stolen . | . . . Parts Stripped . | . . . Power Chain Reactions . | . . . Alert | -11 -10 -10 ------- Run | Yrd Mat Min Peak Influence 208 | . 208 54 Initial 14 | . . 14 Average 65 | . 79 46 Maximum Alert Level 1 | . 1 . Low Security (%) 94 | 100 91 100 Level 1 5 | . 8 . Level 2 . | . . . Level 3 . | . . . Level 4 . | . . . Level 5 . | . . . High Security . | . . . Max Security . | . . . Squads Dispatched 2 | . 1 1 Investigation 1 | . . 1 Extermination . | . . . Reinforcement 1 | . 1 . Assault . | . . . Garrison . | . . . Intercept . | . . . Searches Triggered . | . . . Construction Impeded . | . . . Haulers Reinforced . | . . . Active Scanning Responses . | . . . Cargo Convoy Interrupts . | . . . Stealth | -11 -10 -10 --------- Run | Yrd Mat Min Distress Signals . | . . . Communications Jammed . | . . . Distress Signals . | . . . Times Spotted 21 | . 12 9 Peak Tracking Total 5 | . 4 5 Tactical Retreats . | . . . Traps | -11 -10 -10 ------- Run | Yrd Mat Min Traps Triggered 1 | . 1 . Indirectly . | . . . Trap Hack Attempts . | . . . Triggered . | . . . Disarmed . | . . . Reprogrammed . | . . . Reused . | . . . Traps Extracted . | . . . Installed . | . . . Triggered . | . . . Machines | -11 -10 -10 ---------- Run | Yrd Mat Min Machines Disabled . | . . . Max in Single Turn . | . . . Machines Repaired . | . . . Machines Dismantled . | . . . Machines Sabotaged . | . . . Overloaded Fab Kills . | . . . Hacking | -11 -10 -10 --------- Run | Yrd Mat Min Machines Accessed 4 | . 3 1 Terminals 3 | . 3 . Fabricators . | . . . Repair Stations . | . . . Recycling Units . | . . . Scanalyzers . | . . . Garrison Access . | . . . Total Hacks 15 | . 14 1 Successful 6 | . 5 1 Failed 8 | . 8 . Catastrophic . | . . . Database Lockouts 1 | . 1 . Manual 4 | . 4 . Terminals 14 | . 14 . Fabricators . | . . . Repair Stations . | . . . Recycling Units . | . . . Scanalyzers . | . . . Garrison Access . | . . . Terminal Hacks 6 | . 5 1 Record 1 | . 1 . Robot Analysis 1 | . 1 . Prototype ID Bank 2 | . 2 . Open Door 1 | . . 1 Locate Traps 1 | . 1 . Fabricator Hacks . | . . . Repair Station Hacks . | . . . Recycling Unit Hacks . | . . . Scanalyzer . | . . . Garrison Access Hacks . | . . . Unauthorized Hacks . | . . . Terminals . | . . . Fabricators . | . . . Repair Stations . | . . . Recycling Units . | . . . Scanalyzers . | . . . Garrison Access . | . . . Data Cores Recovered . | . . . Used . | . . . Hacking Detections 3 | . 3 . Full Trace Events 1 | . 1 . Feedback Events . | . . . Feedback Blocked . | . . . Robot Schematics Acquired . | . . . Robots Built . | . . . Authchips . | . . . Time . | . . . Total Robot Build Rating . | . . . Part Schematics Acquired . | . . . Parts Built . | . . . Authchips . | . . . Time . | . . . Total Part Build Rating . | . . . Parts Repaired . | . . . Time . | . . . Parts Recycled . | . . . Recycled Matter . | . . . Retrieved Matter . | . . . Retrieved Components . | . . . Parts Scanalyzed . | . . . Part Schematics Acquired . | . . . Parts Damaged . | . . . Bothacking | -11 -10 -10 ------------ Run | Yrd Mat Min Used RIF Installer . | . . . Robots Hacked . | . . . Non-combat . | . . . Combat . | . . . Robot Hacks Applied . | . . . Relay Couplers Released . | . . . Fabnet Peak Effective % . | . . . Robots Rewired . | . . . Allies Hacked . | . . . Hacks Repelled . | . . . Allies | -11 -10 -10 -------- Run | Yrd Mat Min Total Allies . | . . . Largest Group . | . . . Highest-Rated Group . | . . . Highest-Rated Ally . | . . . Total Orders . | . . . Ally Attacks . | . . . Total Damage . | . . . Kills . | . . . Allies Corrupted . | . . . Allies Melted . | . . . Intel | -11 -10 -10 ------- Run | Yrd Mat Min Robot Analysis Total 1 | . 1 . Derelict Logs Recovered 1 | . . 1 Drone Launches . | . . . Drone Recoveries . | . . . Exploration | -11 -10 -10 ------------- Run | Yrd Mat Min Turns Passed 990 | 59 667 264 Spaces Moved 513 | 43 341 129 Core 2 | 2 . . Treads 466 | . 337 129 Legs . | . . . Wheels 45 | 41 4 . Hover . | . . . Flight . | . . . Fastest Speed 50 | 50 100 160 Average Speed 154 | 97 159 160 Slowest Speed 240 | 100 160 240 Overloaded Moves . | . . . Propulsion Burnouts . | . . . Robots Hopped . | . . . Cave-ins Triggered . | . . . Exploration Rate (%) 30 | 4 59 29 Regions Visited 2 Branch Regions 1 Pre-discovered Areas 1 | . . 1 Known Exits Taken . | . . . Unknown Exits Taken 2 | 1 1 . Scrap Searched 2 | . . 2 Spaces Dug . | . . . Terrain Destroyed . | . . . Melee . | . . . Projectile . | . . . AOE . | . . . Terrain Rammed . | . . . Walls Destroyed . | . . . Machines Disabled . | . . . Actions | -11 -10 -10 --------- Run | Yrd Mat Min Total 623 | 59 400 164 Wait 6 | . . 6 Move 511 | 42 340 129 Hop . | . . . Pick Up 30 | 10 15 5 Fast Attach . | . . . Attach 8 | 6 1 1 Detach . | . . . Swap 9 | 1 5 3 Drop 11 | . 5 6 Fire 48 | . 34 14 Melee . | . . . Ram . | . . . Kick . | . . . Crush . | . . . Escape Stasis . | . . . Rewire . | . . . Trap . | . . . Miscellaneous . | . . . Route ------- -11/Scrapyard -10/Materials (discovered 3 exits: [*Mat x2] / *Min) -10/Mines History --------- Turn | Location | Event 12 | -11/Scrapyard | Discovered new exit (range 16) 60 | -11/Scrapyard | Entered Materials 151 | -10/Materials | Central database locked down 317 | -10/Materials | Build established: Mutant 420 | -10/Materials | Discovered new exit (range 7) 598 | -10/Materials | Discovered new exit (range 15) 703 | -10/Materials | Discovered new exit (range 7) 727 | -10/Materials | Entered Mines 750 | -10/Mines | Learned location of Storage (-8) 807 | -10/Mines | Met a Derelict bent on vengeance 888 | -10/Mines | Met a Derelict shopkeep closing up shop 951 | -10/Mines | Assembled infested the area 969 | -10/Mines | Core integrity fell below 50% 991 | -10/Mines | Core integrity fell below 20% 991 | -10/Mines | Destroyed by D-53 Grenadier with Mini Grenade Launcher Last Messages --------------- Found 26 Matter. Acquired 20 matter. ALERT: Infestation in the mines, dispatching Demolisher response squad. as-05950 destroyed. Switching to secondary target: as-33728. as-33728 destroyed. Switching to secondary target: as-49239. as-49239 destroyed. Acquired 13 matter. Destroyed Asb. F-torch. Ion Engine destroyed. Lgt. Treads destroyed. C-30 ARC bursts open, deploying its payload. D-53 Grenadier unfolds itself. as-58553 destroyed. Field Laser destroyed. Acquired 4 matter. as-69555 destroyed. Lgt. Treads destroyed. Map ----- +----------------------------------------------------+ | | | | | | | | | | | | | | | | | | | ?????????????????????????????????????????????????? | | ##???????????????????????????????????????????????? | | ##?????????????????????????????????????????????? | | ##?????????????????#######????????????????????? | | #?????????????????# #????????????????????? | | ##?????????########=""" #????????????????????? | | ##????????# *% """ #????????????????????? | | #####????# #####=""" #????????????????????? | | #???## #???# """ #????????????????????? | | ### #???# #???# #????????????????????? | | #### ##### ###???#######????????????????????? | | ## #????????????????????????????????? | | ### #########????????????????????????????????? | | #?# #????????????########????????????????????? | | ##?# #???????###### ###??????????????????? | | ###??# #???????# ## ##?????????????? | | ??#### #???????# @ #?????????????? | | ?## #???????# %d ##?????????????? | | ?# ##?????# d[ # ##??????????????? | | ?# #?????## ### ##? #???????????????? | | ## #####?## !#?########??? #??????????????? | | !% ###" ### ###????????????#??????????????? | | ##?#"= # ##??????????????????????????? | | # #??#"= ##?????????????????????????? | | ## #??#"[ #?????????????????????????? | | ?## ##?#" #X #?????????????????????????? | | ??### ###"!### ##?????????????????????????? | | ????## ####### ##?????????????????????????? | | ?????## ### ## #???????????????????? | | ??????## ??????????????????? | | ???????## = ?????????????????? | | ????????## !% ?????????????????? | | ?????????# ### ##! ??????????????????? | | ????????# ##??###?? ??????????????????? | | ????????# ###????????? ??????????????????? | | ????????# ##???????????????????????????????? | | ???????# ###????????????????????????????????? | | ?????? #####??????????????????????????????????? | | ????? #???????????????????????????????????????? | | ???? ????????????????????????????????????????? | | ??? ????????????????????????????????????????? | +----------------------------------------------------+ Best States ------------- Heat Dissipation 25 Energy Generation 10 Energy Capacity 250 Matter Stores 300 Matter Capacity 300 Sight Range 16 Terrain Scan Density 10 Propulsion Shielding 33 Evasion (%) 40 Targeting Accuracy 5 Recoil Reduction 2 Item Schematics ----------------- None Robot Schematics ------------------ None Fabricated ------------ Nothing Alien Tech Used ----------------- None Achievements -------------- None Challenges ------------ None Game ------ Seed ParticleTeslaStabilizer Manual? 0 Play Time 00:09:25 Cumulative 114.5 hours Start 2024.05.22 @ 04:43:20 End 2024.05.22 @ 04:50:22 Sessions 1 Manual Loads 0 Difficulty Rogue Special Mode None Game No. 116 Rogue 107 Adventurer 9 Explorer 0 Win Type - Total 0 Types 0/0/0/0/0/0/0/0/0 Lore% 56 Gallery% 63 Achievement% 47 Wizard Run 0 Options --------- Layout 1 ASCII 0 Keyboard 0 Movement Numpad Keybinds 0 Fullscreen 1 Font 24/Smallcaps Map View 50x35 Zoom Use 0% Tactical HUD 0 Map Filters NONE Filters NONE Steam 1 RUN: 0fbc7a8e-3987-4e18-a71e-84d2a6efdc45